Workbook

Sheet Дети до 3 лет
B1: МБДОУ д/с № 362
A2: Прием пищи | B2: Блюдо | C2: Выход | D2: Калорийность | E2: Белки | F2: Жиры | G2: Углеводы
A3: Завтрак | B3: ='[1]Дневной рацион, Дети до 3х лет'!D4 -> каша вязкая молочная геркулес. | C3: ='[1]Дневной рацион, Дети до 3х лет'!E4 -> 171 | D3: ='[1]Дневной рацион, Дети до 3х лет'!G4 -> 27.976 | E3: ='[1]Дневной рацион, Дети до 3х лет'!H4 -> 0.873 | F3: ='[1]Дневной рацион, Дети до 3х лет'!I4 -> 1.146 | G3: ='[1]Дневной рацион, Дети до 3х лет'!J4 -> 3.506
B4: ='[1]Дневной рацион, Дети до 3х лет'!D5 -> Бутерброды с маслом . | C4: ='[1]Дневной рацион, Дети до 3х лет'!E5 -> 25 | D4: ='[1]Дневной рацион, Дети до 3х лет'!G5 -> 121.667 | E4: ='[1]Дневной рацион, Дети до 3х лет'!H5 -> 1.334 | F4: ='[1]Дневной рацион, Дети до 3х лет'!I5 -> 9.167 | G4: ='[1]Дневной рацион, Дети до 3х лет'!J5 -> 8.334
B5: ='[1]Дневной рацион, Дети до 3х лет'!D6 -> Чай с сахаром . | C5: ='[1]Дневной рацион, Дети до 3х лет'!E6 -> 180 | D5: ='[1]Дневной рацион, Дети до 3х лет'!G6 -> 51.3 | E5: ='[1]Дневной рацион, Дети до 3х лет'!H6 -> 0.18 | F5: ='[1]Дневной рацион, Дети до 3х лет'!I6 -> 0 | G5: ='[1]Дневной рацион, Дети до 3х лет'!J6 -> 13.5
A6: Завтрак №2 | B6: бифилин-н | C6: 170 | D6: 69.78
A8: Обед | B8: ='[1]Дневной рацион, Дети до 3х лет'!D8 -> Суп-харчо с мясом. | C8: ='[1]Дневной рацион, Дети до 3х лет'!E8 -> 173 | D8: ='[1]Дневной рацион, Дети до 3х лет'!G8 -> 352.055 | E8: ='[1]Дневной рацион, Дети до 3х лет'!H8 -> 16.089 | F8: ='[1]Дневной рацион, Дети до 3х лет'!I8 -> 16.435 | G8: ='[1]Дневной рацион, Дети до 3х лет'!J8 -> 34.86
B9: ='[1]Дневной рацион, Дети до 3х лет'!D9 -> Пудинг рыбный запеченный . | C9: ='[1]Дневной рацион, Дети до 3х лет'!E9 -> 136 | D9: ='[1]Дневной рацион, Дети до 3х лет'!G9 -> 103.944 | E9: ='[1]Дневной рацион, Дети до 3х лет'!H9 -> 10.007 | F9: ='[1]Дневной рацион, Дети до 3х лет'!I9 -> 4.382 | G9: ='[1]Дневной рацион, Дети до 3х лет'!J9 -> 6.034
B10: ='[1]Дневной рацион, Дети до 3х лет'!D10 -> Напиток клюквенный. | C10: ='[1]Дневной рацион, Дети до 3х лет'!E10 -> 177 | D10: ='[1]Дневной рацион, Дети до 3х лет'!G10 -> 36.285 | E10: ='[1]Дневной рацион, Дети до 3х лет'!H10 -> 0.089 | F10: ='[1]Дневной рацион, Дети до 3х лет'!I10 -> 0.036 | G10: ='[1]Дневной рацион, Дети до 3х лет'!J10 -> 8.762
B11: ='[1]Дневной рацион, Дети до 3х лет'!D11 -> Икра морковная. | C11: ='[1]Дневной рацион, Дети до 3х лет'!E11 -> 31 | D11: ='[1]Дневной рацион, Дети до 3х лет'!G11 -> 35.134 | E11: ='[1]Дневной рацион, Дети до 3х лет'!H11 -> 0.62 | F11: ='[1]Дневной рацион, Дети до 3х лет'!I11 -> 2.17 | G11: ='[1]Дневной рацион, Дети до 3х лет'!J11 -> 3.1
B12: ='[1]Дневной рацион, Дети до 3х лет'!D12 -> Хлеб пшеничный | C12: ='[1]Дневной рацион, Дети до 3х лет'!E12 -> 30 | D12: ='[1]Дневной рацион, Дети до 3х лет'!G12 -> 0 | E12: ='[1]Дневной рацион, Дети до 3х лет'!H12 -> 0 | F12: ='[1]Дневной рацион, Дети до 3х лет'!I12 -> 0 | G12: ='[1]Дневной рацион, Дети до 3х лет'!J12 -> 0
B13: ='[1]Дневной рацион, Дети до 3х лет'!D13 -> Хлеб ржаной | C13: ='[1]Дневной рацион, Дети до 3х лет'!E13 -> 36 | D13: ='[1]Дневной рацион, Дети до 3х лет'!G13 -> 0 | E13: ='[1]Дневной рацион, Дети до 3х лет'!H13 -> 0 | F13: ='[1]Дневной рацион, Дети до 3х лет'!I13 -> 0 | G13: ='[1]Дневной рацион, Дети до 3х лет'!J13 -> 0
A16: Полдник | B16: ='[1]Дневной рацион, Дети до 3х лет'!D14 -> Вафли | C16: ='[1]Дневной рацион, Дети до 3х лет'!E14 -> 28 | D16: ='[1]Дневной рацион, Дети до 3х лет'!G14 -> 98 | E16: ='[1]Дневной рацион, Дети до 3х лет'!H14 -> 0.784 | F16: ='[1]Дневной рацион, Дети до 3х лет'!I14 -> 0.924 | G16: ='[1]Дневной рацион, Дети до 3х лет'!J14 -> 21.644
B17: ряженка | C17: ='[1]Дневной рацион, Дети до 3х лет'!E15 -> 180 | D17: ='[1]Дневной рацион, Дети до 3х лет'!G15 -> 95.4 | E17: ='[1]Дневной рацион, Дети до 3х лет'!H15 -> 5.22 | F17: ='[1]Дневной рацион, Дети до 3х лет'!I15 -> 4.5 | G17: ='[1]Дневной рацион, Дети до 3х лет'!J15 -> 8.64
A19: Ужин | B19: варенники ленивые | C19: 124 | D19: 397 | E19: ='[1]Дневной рацион, Дети до 3х лет'!H16 -> 10.65 | F19: ='[1]Дневной рацион, Дети до 3х лет'!I16 -> 9.467 | G19: ='[1]Дневной рацион, Дети до 3х лет'!J16 -> 20.985
B20: ='[1]Дневной рацион, Дети до 3х лет'!D17 -> Напиток витаминный Витошка . | C20: ='[1]Дневной рацион, Дети до 3х лет'!E17 -> 183 | D20: ='[1]Дневной рацион, Дети до 3х лет'!G17 -> 301.95 | E20: ='[1]Дневной рацион, Дети до 3х лет'!H17 -> 0 | F20: ='[1]Дневной рацион, Дети до 3х лет'!I17 -> 0 | G20: ='[1]Дневной рацион, Дети до 3х лет'!J17 -> 17.385
B21: ='[1]Дневной рацион, Дети до 3х лет'!D18 -> Хлеб пшеничный | C21: ='[1]Дневной рацион, Дети до 3х лет'!E18 -> 20 | D21: ='[1]Дневной рацион, Дети до 3х лет'!G18 -> 0 | E21: ='[1]Дневной рацион, Дети до 3х лет'!H18 -> 0 | F21: ='[1]Дневной рацион, Дети до 3х лет'!I18 -> 0 | G21: ='[1]Дневной рацион, Дети до 3х лет'!J18 -> 0

Sheet Дети 3-7лет
A3: Прием пищи | B3: Блюдо | C3: Выход | D3: Калорийность | E3: Белки | F3: Жиры | G3: Углеводы
A4: Завтрак | B4: ='[2]Дневной рацион, Дети 3-7 лет, '!D4 -> каша вязкая молочная геркулес. | C4: ='[2]Дневной рацион, Дети 3-7 лет, '!E4 -> 201 | D4: ='[2]Дневной рацион, Дети 3-7 лет, '!G4 -> 32.884 | E4: ='[2]Дневной рацион, Дети 3-7 лет, '!H4 -> 1.026 | F4: ='[2]Дневной рацион, Дети 3-7 лет, '!I4 -> 1.347 | G4: ='[2]Дневной рацион, Дети 3-7 лет, '!J4 -> 4.121
B5: ='[2]Дневной рацион, Дети 3-7 лет, '!D5 -> Бутерброды с маслом . | C5: ='[2]Дневной рацион, Дети 3-7 лет, '!E5 -> 25 | D5: ='[2]Дневной рацион, Дети 3-7 лет, '!G5 -> 121.667 | E5: ='[2]Дневной рацион, Дети 3-7 лет, '!H5 -> 1.334 | F5: ='[2]Дневной рацион, Дети 3-7 лет, '!I5 -> 9.167 | G5: ='[2]Дневной рацион, Дети 3-7 лет, '!J5 -> 8.334
B6: ='[2]Дневной рацион, Дети 3-7 лет, '!D6 -> Чай с сахаром . | C6: ='[2]Дневной рацион, Дети 3-7 лет, '!E6 -> 200 | D6: ='[2]Дневной рацион, Дети 3-7 лет, '!G6 -> 57 | E6: ='[2]Дневной рацион, Дети 3-7 лет, '!H6 -> 0.2 | F6: ='[2]Дневной рацион, Дети 3-7 лет, '!I6 -> 0 | G6: ='[2]Дневной рацион, Дети 3-7 лет, '!J6 -> 15
A7: Завтрак №2 | B7: бифилин-н | C7: 200 | D7: 69.78
A9: Обед | B9: ='[2]Дневной рацион, Дети 3-7 лет, '!D8 -> Суп-харчо с мясом. | C9: ='[2]Дневной рацион, Дети 3-7 лет, '!E8 -> 203 | D9: ='[2]Дневной рацион, Дети 3-7 лет, '!G8 -> 413.105 | E9: ='[2]Дневной рацион, Дети 3-7 лет, '!H8 -> 18.879 | F9: ='[2]Дневной рацион, Дети 3-7 лет, '!I8 -> 19.285 | G9: ='[2]Дневной рацион, Дети 3-7 лет, '!J8 -> 40.905
B10: ='[2]Дневной рацион, Дети 3-7 лет, '!D9 -> Пудинг рыбный запеченный . | C10: ='[2]Дневной рацион, Дети 3-7 лет, '!E9 -> 157 | D10: ='[2]Дневной рацион, Дети 3-7 лет, '!G9 -> 119.994 | E10: ='[2]Дневной рацион, Дети 3-7 лет, '!H9 -> 11.552 | F10: ='[2]Дневной рацион, Дети 3-7 лет, '!I9 -> 5.059 | G10: ='[2]Дневной рацион, Дети 3-7 лет, '!J9 -> 6.965
B11: ='[2]Дневной рацион, Дети 3-7 лет, '!D10 -> Напиток клюквенный. | C11: ='[2]Дневной рацион, Дети 3-7 лет, '!E10 -> 196 | D11: ='[2]Дневной рацион, Дети 3-7 лет, '!G10 -> 40.18 | E11: ='[2]Дневной рацион, Дети 3-7 лет, '!H10 -> 0.098 | F11: ='[2]Дневной рацион, Дети 3-7 лет, '!I10 -> 0.04 | G11: ='[2]Дневной рацион, Дети 3-7 лет, '!J10 -> 9.702
B12: ='[2]Дневной рацион, Дети 3-7 лет, '!D11 -> Икра морковная. | C12: ='[2]Дневной рацион, Дети 3-7 лет, '!E11 -> 51 | D12: ='[2]Дневной рацион, Дети 3-7 лет, '!G11 -> 57.801 | E12: ='[2]Дневной рацион, Дети 3-7 лет, '!H11 -> 1.02 | F12: ='[2]Дневной рацион, Дети 3-7 лет, '!I11 -> 3.57 | G12: ='[2]Дневной рацион, Дети 3-7 лет, '!J11 -> 5.1
B13: ='[2]Дневной рацион, Дети 3-7 лет, '!D12 -> Хлеб пшеничный | C13: ='[2]Дневной рацион, Дети 3-7 лет, '!E12 -> 40 | D13: ='[2]Дневной рацион, Дети 3-7 лет, '!G12 -> 0 | E13: ='[2]Дневной рацион, Дети 3-7 лет, '!H12 -> 0 | F13: ='[2]Дневной рацион, Дети 3-7 лет, '!I12 -> 0 | G13: ='[2]Дневной рацион, Дети 3-7 лет, '!J12 -> 0
B14: ='[2]Дневной рацион, Дети 3-7 лет, '!D13 -> Хлеб ржаной | C14: ='[2]Дневной рацион, Дети 3-7 лет, '!E13 -> 42 | D14: ='[2]Дневной рацион, Дети 3-7 лет, '!G13 -> 0 | E14: ='[2]Дневной рацион, Дети 3-7 лет, '!H13 -> 0 | F14: ='[2]Дневной рацион, Дети 3-7 лет, '!I13 -> 0 | G14: ='[2]Дневной рацион, Дети 3-7 лет, '!J13 -> 0
A16: Полдник | B16: ='[2]Дневной рацион, Дети 3-7 лет, '!D14 -> Вафли | C16: ='[2]Дневной рацион, Дети 3-7 лет, '!E14 -> 37 | D16: ='[2]Дневной рацион, Дети 3-7 лет, '!G14 -> 129.5 | E16: ='[2]Дневной рацион, Дети 3-7 лет, '!H14 -> 1.036 | F16: ='[2]Дневной рацион, Дети 3-7 лет, '!I14 -> 1.221 | G16: ='[2]Дневной рацион, Дети 3-7 лет, '!J14 -> 28.601
B17: ряженка | C17: ='[2]Дневной рацион, Дети 3-7 лет, '!E15 -> 180 | D17: ='[2]Дневной рацион, Дети 3-7 лет, '!G15 -> 95.4 | E17: ='[2]Дневной рацион, Дети 3-7 лет, '!H15 -> 5.22 | F17: ='[2]Дневной рацион, Дети 3-7 лет, '!I15 -> 4.5 | G17: ='[2]Дневной рацион, Дети 3-7 лет, '!J15 -> 8.64
A19: Ужин | B19: варенники ленивые | C19: 2124 | D19: 397 | E19: ='[2]Дневной рацион, Дети 3-7 лет, '!H16 -> 12.825 | F19: ='[2]Дневной рацион, Дети 3-7 лет, '!I16 -> 11.4 | G19: ='[2]Дневной рацион, Дети 3-7 лет, '!J16 -> 25.27
B20: ='[2]Дневной рацион, Дети 3-7 лет, '!D17 -> Напиток витаминный Витошка . | C20: ='[2]Дневной рацион, Дети 3-7 лет, '!E17 -> 183 | D20: ='[2]Дневной рацион, Дети 3-7 лет, '!G17 -> 301.95 | E20: ='[2]Дневной рацион, Дети 3-7 лет, '!H17 -> 0 | F20: ='[2]Дневной рацион, Дети 3-7 лет, '!I17 -> 0 | G20: ='[2]Дневной рацион, Дети 3-7 лет, '!J17 -> 17.385
B21: ='[2]Дневной рацион, Дети 3-7 лет, '!D18 -> Хлеб пшеничный | C21: ='[2]Дневной рацион, Дети 3-7 лет, '!E18 -> 20 | D21: ='[2]Дневной рацион, Дети 3-7 лет, '!G18 -> 0 | E21: ='[2]Дневной рацион, Дети 3-7 лет, '!H18 -> 0 | F21: ='[2]Дневной рацион, Дети 3-7 лет, '!I18 -> 0 | G21: ='[2]Дневной рацион, Дети 3-7 лет, '!J18 -> 0
B22: ='[2]Дневной рацион, Дети 3-7 лет, '!D19 -> 0 | C22: ='[2]Дневной рацион, Дети 3-7 лет, '!E19 -> 0 | D22: ='[2]Дневной рацион, Дети 3-7 лет, '!G19 -> 0 | E22: ='[2]Дневной рацион, Дети 3-7 лет, '!H19 -> 0 | F22: ='[2]Дневной рацион, Дети 3-7 лет, '!I19 -> 0 | G22: ='[2]Дневной рацион, Дети 3-7 лет, '!J19 -> 0
